bitfinex-derivatives/quotes_BTCF0:USTF0_20250926
["timestamp","ask_amount","ask_price","bid_price","bid_amount"]
[1758879888138,1.76182755,109480.0,109470.0,0.03632]
[1758879888432,1.41028542,109480.0,109470.0,0.03632]
[1758879888629,1.76182755,109480.0,109470.0,0.03632]
[1758879889534,1.75982755,109480.0,109470.0,0.03632]
[1758879889827,1.76282755,109480.0,109470.0,0.38786213]
[1758879890533,1.68841173,109480.0,109470.0,0.38786213]
[1758879891034,1.3368696,109480.0,109470.0,0.38786213]
[1758879891625,1.68841173,109480.0,109470.0,0.38786213]
[1758879894826,1.3368696,109480.0,109470.0,0.38786213]
[1758879895125,1.68841173,109480.0,109470.0,0.38786213]
[1758879897632,1.3368696,109480.0,109470.0,0.38786213]
[1758879897834,1.71148132,109480.0,109470.0,0.38786213]
[1758879898036,1.35993919,109480.0,109470.0,0.38786213]
[1758879898238,1.71148132,109480.0,109470.0,0.38786213]
[1758879899135,1.35993919,109480.0,109470.0,0.38786213]
[1758879899334,1.71148132,109480.0,109470.0,0.38786213]
[1758879899536,1.35993919,109480.0,109470.0,0.38786213]
[1758879899730,1.71148132,109480.0,109470.0,0.38786213]
[1758879900431,1.71148132,109480.0,109470.0,0.03632]
[1758879900733,1.35993919,109480.0,109470.0,0.03632]
[1758879906542,0.50245919,109480.0,109470.0,0.03632]
[1758879906746,1.35977919,109480.0,109470.0,0.03632]
[1758879907449,0.1075979,109470.0,109460.0,0.03673]
[1758879907645,0.49138132,109470.0,109460.0,0.03673]
[1758879907849,1.34870132,109470.0,109460.0,0.03673]
[1758879908652,1.35670132,109470.0,109460.0,0.03673]
[1758879909551,1.35870132,109470.0,109460.0,0.03673]
[1758879910366,1.35870132,109470.0,109460.0,0.1280063]
[1758879914570,1.35870132,109470.0,109460.0,0.03673]
[1758879920675,1.35870132,109470.0,109460.0,0.1280063]
[1758879924872,0.04931342,109470.0,109460.0,0.1280063]
[1758879925080,0.86728,109470.0,109460.0,0.5280063]
[1758879925279,0.86728,109470.0,109460.0,0.8888063]
[1758879926578,0.86528,109470.0,109460.0,0.8888063]
[1758879927973,0.86128,109470.0,109460.0,0.8888063]
[1758879929081,0.004,109470.0,109460.0,0.8888063]
[1758879929678,0.1115989,109470.0,109460.0,0.79753]
[1758879929870,0.13460108,109470.0,109460.0,0.79753]
[1758879930483,0.13460108,109470.0,109460.0,0.8888073]
[1758879931983,0.04333218,109470.0,109460.0,0.8888073]
[1758879932184,0.02700218,109470.0,109460.0,0.8888073]
[1758879936376,0.004,109470.0,109460.0,0.9801607]
[1758879936579,0.52403385,109490.0,109480.0,0.1257806]
[1758879936580,0.37713,109490.0,109480.0,0.1257806]
[1758879936983,1.23437,109490.0,109480.0,0.1257806]
[1758879937388,1.23437,109490.0,109480.0,0.13507201]
[1758879937882,1.3256227,109490.0,109480.0,0.13507201]
[1758879938089,1.21804,109490.0,109480.0,0.13507201]
[1758879938891,0.86024,109490.0,109480.0,0.13507201]
[1758879939287,0.86424,109490.0,109480.0,0.13507201]
[1758879939477,0.86124,109490.0,109480.0,0.13507201]
[1758879939683,0.86324,109490.0,109480.0,0.13507201]
[1758879940189,0.87957,109490.0,109480.0,0.13507201]
[1758879940589,0.006,109490.0,109480.0,0.13507201]
[1758879940790,0.80588,109490.0,109480.0,0.13507201]
[1758879942594,0.82221,109490.0,109480.0,0.13507201]
[1758879942995,0.9134623,109490.0,109480.0,0.13507201]
[1758879943193,0.9134623,109490.0,109480.0,0.1257806]
[1758879944499,0.82221,109490.0,109480.0,0.1257806]
[1758879944799,0.80588,109490.0,109480.0,0.1257806]
[1758879945494,0.82221,109490.0,109480.0,0.1257806]
[1758879947203,0.9134623,109490.0,109480.0,0.1257806]
[1758879949707,0.80588,109490.0,109480.0,0.1257806]
[1758879950519,0.82221,109490.0,109480.0,0.1257806]
[1758879951319,0.82221,109490.0,109480.0,0.4865806]
[1758879951720,0.9134623,109490.0,109480.0,0.1257806]
[1758879952523,0.82221,109490.0,109480.0,0.1257806]
[1758879952721,0.82221,109490.0,109480.0,0.4865806]
[1758879955019,0.80588,109490.0,109480.0,0.4865806]
[1758879955418,0.82221,109490.0,109480.0,0.4865806]
[1758879956027,0.9134623,109490.0,109480.0,0.1257806]
[1758879961129,0.02233,109490.0,109480.0,0.1257806]
[1758879961328,0.86304,109490.0,109480.0,0.1257806]
[1758879962028,0.87937,109490.0,109480.0,0.1257806]
[1758879963930,0.9706223,109490.0,109480.0,0.1257806]
[1758879966231,0.99362738,109490.0,109480.0,0.1257806]
[1758879968136,0.90237508,109490.0,109480.0,0.1257806]
[1758879968930,0.02900508,109490.0,109480.0,0.1257806]
[1758879969127,0.02900508,109490.0,109480.0,0.4865806]
[1758879969434,0.39968788,109510.0,109500.0,0.1050839]
[1758879969731,1.25879191,109510.0,109500.0,0.1272339]
[1758879969932,0.89799191,109510.0,109500.0,0.1272339]
[1758879970336,0.04099191,109510.0,109500.0,0.1272339]
[1758879970837,0.89799191,109510.0,109500.0,0.1272339]
[1758879971035,0.89799191,109510.0,109500.0,0.13615993]
[1758879971833,0.90199191,109510.0,109500.0,0.13615993]
[1758879972036,0.99322751,109510.0,109500.0,0.13615993]
[1758879972535,0.88395356,109510.0,109500.0,0.13615993]
[1758879973131,0.99151916,109510.0,109500.0,0.04491603]
[1758879974636,0.99151916,109510.0,109500.0,0.03599]
[1758879975035,0.99151916,109510.0,109500.0,0.1272339]
[1758879975234,0.90028356,109510.0,109500.0,0.1272339]
[1758879975437,0.87729,109510.0,109500.0,0.4880339]
[1758879975935,0.9685256,109510.0,109500.0,0.4880339]
[1758879976434,0.87729,109510.0,109500.0,0.4880339]
[1758879977231,0.004,109510.0,109500.0,0.4880339]
[1758879977534,0.47108,109510.0,109500.0,0.49698414]
[1758879977929,0.004,109510.0,109500.0,0.98830417]
[1758879979437,0.004,109510.0,109500.0,1.00710051]
[1758879980029,0.5416283,109520.0,109510.0,0.1272256]
[1758879980225,0.5579583,109520.0,109510.0,0.4880256]
[1758879982135,0.5589583,109520.0,109510.0,0.4880256]
[1758879988541,0.5579583,109520.0,109510.0,0.4880256]
[1758879989439,0.5589583,109520.0,109510.0,0.4880256]
[1758879991832,0.107565,109510.0,109500.0,0.50628524]
[1758879993042,0.107565,109510.0,109500.0,0.50928524]
[1758879994736,0.108565,109510.0,109500.0,0.50928524]
[1758879995239,0.01733,109510.0,109500.0,0.50928524]
[1758879995737,0.01733,109510.0,109500.0,0.50628524]
[1758879995941,0.01933,109510.0,109500.0,0.50628524]
[1758879997942,0.01733,109510.0,109500.0,0.50628524]
[1758879998735,0.01633,109510.0,109500.0,0.50628524]
[1758879999141,0.01633,109510.0,109500.0,0.50928524]
[1758880001940,0.4683567,109520.0,109510.0,0.125835]
[1758880002136,0.4683567,109520.0,109510.0,0.486635]
[1758880002137,0.03929339,109520.0,109510.0,0.486635]
[1758880002331,0.89585339,109520.0,109510.0,0.486635]
[1758880003447,0.98707979,109520.0,109510.0,0.486635]
[1758880005446,0.98807979,109520.0,109510.0,0.486635]
[1758880007151,0.89685339,109520.0,109510.0,0.486635]
[1758880008843,0.89585339,109520.0,109510.0,0.486635]
[1758880009447,0.89585339,109520.0,109510.0,0.489635]
[1758880010251,0.98707999,109520.0,109510.0,0.489635]
[1758880011453,0.98707999,109520.0,109510.0,0.486635]
[1758880011852,0.98807999,109520.0,109510.0,0.486635]
[1758880012050,0.13151999,109520.0,109510.0,0.486635]
[1758880012252,0.98799999,109520.0,109510.0,0.486635]
[1758880012451,0.89677339,109520.0,109510.0,0.486635]
[1758880017753,0.04029339,109520.0,109510.0,0.486635]
[1758880017953,0.89669339,109520.0,109510.0,0.486635]
[1758880019759,0.98792019,109520.0,109510.0,0.486635]
[1758880020560,0.13152019,109520.0,109510.0,0.486635]
[1758880020756,0.98792019,109520.0,109510.0,0.486635]
[1758880021465,0.13152019,109520.0,109510.0,0.486635]
[1758880021672,0.98788019,109520.0,109510.0,0.486635]
[1758880021866,0.98784019,109520.0,109510.0,0.486635]
[1758880022569,0.13152019,109520.0,109510.0,0.486635]
[1758880022764,0.98784019,109520.0,109510.0,0.486635]
[1758880023070,0.98786105,109520.0,109510.0,0.486635]
[1758880023971,0.98786183,109520.0,109510.0,0.486635]
[1758880027378,0.13154183,109520.0,109510.0,0.486635]
[1758880027675,0.98782183,109520.0,109510.0,0.486635]
[1758880030280,0.89659503,109520.0,109510.0,0.486635]
[1758880031577,0.04031503,109520.0,109510.0,0.486635]
[1758880031882,0.001,109520.0,109510.0,1.04359357]
[1758880032075,0.46834,109540.0,109530.0,0.091218]
[1758880032377,0.89542484,109540.0,109530.0,0.125818]
[1758880032581,0.98663464,109540.0,109530.0,0.125818]
[1758880033166,0.13047464,109540.0,109530.0,0.125818]
[1758880033381,0.98663464,109540.0,109530.0,0.125818]
[1758880033683,0.03926484,109540.0,109530.0,0.125818]
[1758880033882,0.89538484,109540.0,109530.0,0.125818]
[1758880034183,0.89538484,109540.0,109530.0,0.1349023]
[1758880034371,0.87445,109540.0,109530.0,0.1349023]
[1758880034781,0.87445,109540.0,109530.0,0.4957023]
[1758880034971,0.87245,109540.0,109530.0,0.4957023]
[1758880035173,0.87345,109540.0,109530.0,0.4957023]
[1758880035677,0.9646598,109540.0,109530.0,0.4957023]
[1758880037481,0.9646598,109540.0,109530.0,0.1349023]
[1758880038579,0.9646598,109540.0,109530.0,0.125818]
[1758880039082,0.9645398,109540.0,109530.0,0.125818]
[1758880039681,0.87333,109540.0,109530.0,0.125818]
[1758880041381,0.9645398,109540.0,109530.0,0.125818]
[1758880042672,1.3253398,109540.0,109530.0,0.01316]
[1758880043184,1.3253398,109540.0,109530.0,0.0346]
[1758880047088,1.34821772,109540.0,109530.0,0.0346]
[1758880047680,1.34821772,109540.0,109530.0,0.1258181]
[1758880048488,1.3253398,109540.0,109530.0,0.1258181]
[1758880049391,1.34822101,109540.0,109530.0,0.1258181]
[1758880049590,1.3253398,109540.0,109530.0,0.1258181]
[1758880050493,0.87333,109540.0,109530.0,0.1258181]
[1758880051790,0.87309,109540.0,109530.0,0.1258181]
[1758880052886,0.85672,109540.0,109530.0,0.1258181]
[1758880053192,0.001,109540.0,109530.0,0.1258181]
[1758880053388,0.85672,109540.0,109530.0,0.1258181]
[1758880054286,0.87305,109540.0,109530.0,0.4866181]
[1758880054692,0.9642601,109540.0,109530.0,0.4866181]
[1758880054892,0.9642601,109540.0,109530.0,0.3954]
[1758880055196,0.9632601,109540.0,109530.0,0.0346]
[1758880055497,0.9632601,109540.0,109530.0,0.3984]
[1758880055993,0.9642601,109540.0,109530.0,0.0346]
[1758880060490,0.1177584,109530.0,109520.0,0.06564688]
[1758880060698,0.0912517,109490.0,109480.0,0.21021463]
[1758880060989,0.1075901,109480.0,109470.0,0.03696]
[1758880061397,0.4683901,109480.0,109470.0,0.03696]
[1758880062097,0.01333,109480.0,109470.0,0.4890284]
[1758880062481,0.9602298,109480.0,109470.0,0.4890284]
[1758880062689,0.86897,109480.0,109470.0,0.4890284]
[1758880062883,0.4635862,109490.0,109480.0,0.0912598]
[1758880063090,1.3192262,109490.0,109480.0,0.1282198]
[1758880063496,1.3192262,109490.0,109480.0,0.03696]
[1758880065092,1.3252262,109490.0,109480.0,0.03696]
[1758880065600,1.3242262,109490.0,109480.0,0.03696]
[1758880066398,1.39737977,109490.0,109480.0,0.03696]
[1758880066899,1.39637977,109490.0,109480.0,0.03696]
[1758880068095,1.39637977,109490.0,109480.0,0.12822]
[1758880072499,1.39537977,109490.0,109480.0,0.12922]
[1758880072702,1.39537977,109490.0,109480.0,0.03796]
[1758880073307,1.39637977,109490.0,109480.0,0.03696]
[1758880073707,1.39637977,109490.0,109480.0,0.1282198]
[1758880075407,1.39637977,109490.0,109480.0,0.03696]
[1758880075808,1.39637977,109490.0,109480.0,0.12822]
[1758880077514,1.30512357,109490.0,109480.0,0.12822]
[1758880077701,0.94432357,109490.0,109480.0,0.12822]
[1758880077901,1.03557507,109490.0,109480.0,0.12822]
[1758880079200,0.94432357,109490.0,109480.0,0.48902]
[1758880079995,1.03557487,109490.0,109480.0,0.48902]
[1758880080404,0.08868357,109490.0,109480.0,0.48902]
[1758880080600,0.004,109490.0,109480.0,0.88902]
[1758880080806,0.37233,109510.0,109500.0,0.1279835]
[1758880081105,1.22817,109510.0,109500.0,0.1279835]
[1758880081300,0.37233,109510.0,109500.0,0.1279835]
[1758880081908,0.86737,109510.0,109500.0,0.1279835]
[1758880082104,1.3194053,109510.0,109500.0,0.1279835]
[1758880082303,1.3224053,109510.0,109500.0,0.03674]
[1758880082601,0.1027736,109500.0,109490.0,0.05545966]
[1758880082810,0.4635736,109500.0,109490.0,0.05545966]
[1758880083401,0.4635736,109500.0,109490.0,0.14671146]
[1758880083907,0.4635736,109500.0,109490.0,0.14771146]
[1758880084102,0.1027736,109500.0,109490.0,0.14771146]
[1758880084302,0.01153,109500.0,109490.0,0.14771146]
[1758880084503,0.86733,109500.0,109490.0,0.14771146]
[1758880084806,0.86733,109500.0,109490.0,0.15271146]
[1758880085202,0.9585734,109500.0,109490.0,0.15271146]
[1758880087404,0.98276139,109500.0,109490.0,0.15271146]
[1758880088410,0.89151799,109500.0,109490.0,0.15271146]
[1758880088610,0.89151799,109500.0,109490.0,0.51351146]
[1758880090016,0.98276109,109500.0,109490.0,0.51351146]
[1758880090810,1.34356109,109500.0,109490.0,0.15271146]
[1758880091201,0.98276109,109500.0,109490.0,0.15271146]
[1758880092211,0.98276109,109500.0,109490.0,0.04274]
[1758880092404,1.34356109,109500.0,109490.0,0.04274]
[1758880092807,1.34356109,109500.0,109490.0,0.006]
[1758880093009,1.34356109,109500.0,109490.0,0.04203]
[1758880093911,1.74356109,109500.0,109490.0,0.006]
[1758880094107,1.74356109,109500.0,109490.0,0.0282]
[1758880094416,1.74356109,109500.0,109490.0,0.04203]
[1758880098715,1.74356109,109500.0,109490.0,0.01983]
[1758880099316,1.74356109,109500.0,109490.0,0.04203]
[1758880099914,1.74356109,109500.0,109490.0,0.006]
[1758880104219,1.77636849,109500.0,109490.0,0.006]
[1758880114125,0.0931901,109480.0,109470.0,0.01399]
[1758880114316,1.33385809,109480.0,109470.0,0.01399]
[1758880115224,1.30389123,109480.0,109470.0,0.03199]
[1758880116030,1.30389123,109480.0,109470.0,0.05394]
[1758880119829,1.30389123,109480.0,109470.0,0.018]
[1758880120433,1.30389123,109480.0,109470.0,0.05348]
[1758880121532,1.31324967,109480.0,109470.0,0.05348]
[1758880125627,1.31324967,109480.0,109470.0,1e-07]
[1758880125827,2.07404967,109480.0,109470.0,1e-07]
[1758880126931,0.0912682,109470.0,109460.0,0.01374]
[1758880127135,0.47818619,109470.0,109460.0,0.03569]
[1758880128136,1.33370619,109470.0,109460.0,0.03569]
[1758880128736,0.47818619,109470.0,109460.0,0.03569]
[1758880129036,1.33566619,109470.0,109460.0,0.5269667]
[1758880129330,1.40691287,109470.0,109460.0,0.5269667]
[1758880129532,1.43791287,109470.0,109460.0,0.5269667]
[1758880130134,1.43791287,109470.0,109460.0,0.43569]
[1758880131341,1.43791287,109470.0,109460.0,0.5269665]
[1758880132338,1.43791287,109470.0,109460.0,0.43569]
[1758880134041,0.58243287,109470.0,109460.0,0.5269667]
[1758880134242,1.43787287,109470.0,109460.0,0.5269667]
[1758880135137,1.07707287,109470.0,109460.0,0.5269667]
[1758880136842,0.22163267,109470.0,109460.0,0.5269667]
[1758880137031,1.07510267,109470.0,109460.0,0.1269667]
[1758880137339,1.07703267,109470.0,109460.0,0.1269667]
[1758880138637,1.07703267,109470.0,109460.0,0.4877667]
[1758880140340,0.22163267,109470.0,109460.0,0.4877667]
[1758880140541,1.07703267,109470.0,109460.0,0.4877667]
[1758880141333,0.91250799,109470.0,109460.0,0.8877667]
[1758880141642,0.91258915,109470.0,109460.0,0.8877667]
[1758880141841,0.88832,109470.0,109460.0,0.8877667]
[1758880142539,0.453985,109490.0,109480.0,0.0912602]
[1758880142734,1.33353859,109490.0,109480.0,0.1269902]
[1758880143943,1.35353859,109490.0,109480.0,0.1269902]
[1758880144841,1.35753859,109490.0,109480.0,0.1269902]
[1758880145341,1.35745859,109490.0,109480.0,0.1269902]
[1758880146343,0.41100359,109490.0,109480.0,0.1269902]
[1758880146640,1.26620359,109490.0,109480.0,0.1269902]
[1758880147143,1.26620359,109490.0,109480.0,0.13599772]
[1758880147540,0.41100359,109490.0,109480.0,0.13599772]
[1758880147743,0.04827359,109490.0,109480.0,0.53599772]
[1758880147940,0.024,109490.0,109480.0,0.89679772]
[1758880148147,0.87912,109490.0,109480.0,0.98813443]
[1758880148640,0.024,109490.0,109480.0,0.98813443]
[1758880149338,0.003,109490.0,109480.0,0.99913443]
[1758880150045,0.003,109490.0,109480.0,1.00513443]
[1758880151349,0.5863334,109500.0,109490.0,0.1273817]
[1758880151540,0.9471334,109500.0,109490.0,0.1273817]
[1758880152448,1.3089734,109500.0,109490.0,0.1273817]
[1758880152650,1.3089734,109500.0,109490.0,0.04113]
[1758880153147,1.3099734,109500.0,109490.0,0.1323819]
[1758880153747,1.3099734,109500.0,109490.0,0.04113]
[1758880154550,1.3089734,109500.0,109490.0,0.04113]
[1758880154753,1.3119734,109500.0,109490.0,0.04113]
[1758880155350,1.3119734,109500.0,109490.0,0.03613]
[1758880160062,0.0912519,109490.0,109480.0,0.01381]
[1758880160247,0.0931819,109490.0,109480.0,0.03652]
[1758880161255,0.0941819,109490.0,109480.0,0.03652]
[1758880161755,0.4549819,109490.0,109480.0,0.03652]
[1758880162143,0.47917854,109490.0,109480.0,0.04152]
[1758880162755,0.87917854,109490.0,109480.0,0.005]
[1758880164747,0.87917854,109490.0,109480.0,0.04034]
[1758880165054,0.87917854,109490.0,109480.0,0.005]
[1758880165453,0.87917854,109490.0,109480.0,0.03904]
[1758880165647,0.87917854,109490.0,109480.0,0.01763]
[1758880166047,1.73377854,109490.0,109480.0,0.03904]
[1758880171755,1.33377854,109490.0,109480.0,0.03904]
[1758880174967,0.47917854,109490.0,109480.0,0.03904]
[1758880175154,1.33361854,109490.0,109480.0,0.03904]
[1758880175762,1.33361854,109490.0,109480.0,0.1303012]
[1758880179065,1.33353854,109490.0,109480.0,0.1303012]
[1758880180355,0.88148664,109490.0,109480.0,0.1303012]
[1758880180558,0.02712664,109490.0,109480.0,0.90991339]
[1758880180757,0.85532,109490.0,109480.0,1.0012501]
[1758880181966,0.85532,109490.0,109480.0,0.6012501]
[1758880182664,0.85725,109490.0,109480.0,0.6012501]
[1758880182865,0.85625,109490.0,109480.0,0.6012501]
[1758880183167,0.85625,109490.0,109480.0,0.5962501]
[1758880183357,0.85625,109490.0,109480.0,0.6072501]
[1758880184169,0.9475028,109490.0,109480.0,0.2464501]
[1758880184460,1.3083028,109490.0,109480.0,0.55511339]
[1758880185466,1.3083028,109490.0,109480.0,0.54911339]
[1758880185861,1.3093028,109490.0,109480.0,0.54911339]
[1758880186054,1.21805,109490.0,109480.0,0.54911339]
[1758880186254,0.85725,109490.0,109480.0,0.54911339]
[1758880187166,1.3093028,109490.0,109480.0,0.54911339]
[1758880187562,0.85725,109490.0,109480.0,0.54911339]
[1758880189070,1.3093028,109490.0,109480.0,0.54911339]
[1758880190262,1.21805,109490.0,109480.0,0.54911339]
[1758880190473,0.85725,109490.0,109480.0,0.54911339]
[1758880191768,0.00293,109490.0,109480.0,0.90991339]
[1758880191968,0.85697,109490.0,109480.0,0.90991339]
[1758880192767,0.85597,109490.0,109480.0,0.90991339]
[1758880192968,0.85597,109490.0,109480.0,0.91591339]
[1758880194770,0.52684915,109510.0,109500.0,0.1261245]
[1758880194968,0.55109123,109510.0,109500.0,0.1261245]
[1758880195172,1.40501123,109510.0,109500.0,0.1261245]
[1758880195369,1.33213378,109510.0,109500.0,0.1261245]
[1758880195969,1.33513378,109510.0,109500.0,0.1261245]
[1758880198275,0.38997208,109510.0,109500.0,0.1261245]
[1758880198476,1.33508828,109510.0,109500.0,0.1261245]
[1758880200076,1.24385208,109510.0,109500.0,0.1261245]
[1758880200478,0.88305208,109510.0,109500.0,0.1261245]
[1758880200869,1.24385208,109510.0,109500.0,0.1261245]
[1758880201074,0.88305208,109510.0,109500.0,0.1261245]
[1758880201575,1.24385208,109510.0,109500.0,0.1261245]
[1758880201981,0.38997208,109510.0,109500.0,0.1261245]
[1758880202174,0.003,109510.0,109500.0,0.5261245]
[1758880202374,0.85676,109510.0,109500.0,0.5261245]
[1758880203070,0.85676,109510.0,109500.0,0.53516607]
[1758880203979,0.85676,109510.0,109500.0,0.54016607]
[1758880204174,0.85476,109510.0,109500.0,0.54016607]
[1758880205182,0.001,109510.0,109500.0,0.54016607]
[1758880205380,0.85468,109510.0,109500.0,0.54016607]
[1758880205880,0.00293,109510.0,109500.0,0.6314861]
[1758880208491,0.00293,109510.0,109500.0,0.9922861]
[1758880209889,0.001,109510.0,109500.0,0.9922861]
[1758880210791,0.00293,109510.0,109500.0,0.9922861]
[1758880211494,0.001,109510.0,109500.0,0.9922861]
[1758880214090,0.8534,109520.0,109510.0,0.1256861]
[1758880214284,0.36273,109530.0,109520.0,0.1044178]
[1758880214494,0.00193,109530.0,109520.0,0.1256778]
[1758880214691,0.85525,109530.0,109520.0,0.1256778]
[1758880215200,0.9464691,109530.0,109520.0,0.1256778]
[1758880216196,0.85525,109530.0,109520.0,0.1256778]
[1758880217294,0.85825,109530.0,109520.0,0.1256778]
[1758880217999,0.9494684,109530.0,109520.0,0.1256778]
[1758880218701,0.85825,109530.0,109520.0,0.1256778]
[1758880219295,0.00493,109530.0,109520.0,0.1256778]
[1758880219488,0.85809,109530.0,109520.0,0.1256778]
[1758880220999,0.88226879,109530.0,109520.0,0.1256778]
[1758880221198,0.85809,109530.0,109520.0,0.1256778]
[1758880221496,0.00493,109530.0,109520.0,0.21698115]
[1758880221698,0.85805,109530.0,109520.0,0.21698115]
[1758880222998,0.85805,109530.0,109520.0,0.22198115]
[1758880223304,0.88223301,109530.0,109520.0,0.22198115]
[1758880223497,0.02611301,109530.0,109520.0,0.22798115]
[1758880223699,0.00293,109530.0,109520.0,0.22798115]
[1758880224001,0.00293,109530.0,109520.0,0.58878115]
[1758880224302,0.00193,109530.0,109520.0,0.58878115]
[1758880225503,0.0931474,109530.0,109520.0,0.58878115]
[1758880227106,0.11733524,109530.0,109520.0,0.57778115]
[1758880227404,0.0931474,109530.0,109520.0,0.58278115]
[1758880227997,0.0941474,109530.0,109520.0,0.58278115]
[1758880228197,0.11833823,109530.0,109520.0,0.58278115]
[1758880229206,0.02519083,109530.0,109520.0,0.58278115]
[1758880229401,0.001,109530.0,109520.0,0.22198115]
[1758880229603,1.01839839,109550.0,109540.0,0.125519]
[1758880229909,1.40339401,109550.0,109540.0,0.125519]
[1758880230102,1.04259401,109550.0,109540.0,0.125519]
[1758880230304,0.18979401,109550.0,109540.0,0.125519]
[1758880230505,1.40639401,109550.0,109540.0,0.125519]
[1758880230705,0.55459401,109550.0,109540.0,0.125519]
[1758880230907,1.41027401,109550.0,109540.0,0.125519]
[1758880231108,0.55459401,109550.0,109540.0,0.125519]
[1758880231311,1.41019401,109550.0,109540.0,0.125519]
[1758880231707,1.41019401,109550.0,109540.0,0.03431]
[1758880231912,1.33772982,109550.0,109540.0,0.03431]
[1758880232113,0.48212982,109550.0,109540.0,0.03431]
[1758880232508,0.97680982,109550.0,109540.0,0.1255189]
[1758880232703,0.97680982,109550.0,109540.0,0.13453619]
[1758880233310,0.88536562,109550.0,109540.0,0.13453619]
[1758880234714,0.88336562,109550.0,109540.0,0.13453619]
[1758880235103,0.97456622,109550.0,109540.0,0.13453619]
[1758880236219,0.97456622,109550.0,109540.0,0.1255189]
[1758880236714,0.9503706,109550.0,109540.0,0.1255189]
[1758880236914,1.3111706,109550.0,109540.0,0.1255189]
[1758880237614,1.33413236,109550.0,109540.0,0.03431]
[1758880237919,1.33413236,109550.0,109540.0,0.1255189]
[1758880238718,1.24293176,109550.0,109540.0,0.1255189]
[1758880239620,0.88213176,109550.0,109540.0,0.1255189]
[1758880241011,0.73669627,109560.0,109550.0,0.0912006]
[1758880241216,1.23760935,109560.0,109550.0,0.1255106]
[1758880241418,1.32880155,109560.0,109550.0,0.1255106]
[1758880242315,1.23744935,109560.0,109550.0,0.1255106]
[1758880242619,1.33164155,109560.0,109550.0,0.1255106]
[1758880245118,0.47796155,109560.0,109550.0,0.1255106]
[1758880245325,1.33160155,109560.0,109550.0,0.1255106]
[1758880246625,0.47796155,109560.0,109550.0,0.1255106]
[1758880246818,1.33132155,109560.0,109550.0,0.1255106]
[1758880247926,1.33132155,109560.0,109550.0,0.03431]
[1758880256635,0.47796155,109560.0,109550.0,0.03431]
[1758880256935,1.33068155,109560.0,109550.0,0.03431]
[1758880259633,1.33068155,109560.0,109550.0,0.1255123]
[1758880259934,1.33068155,109560.0,109550.0,0.03431]
[1758880260636,1.33068155,109560.0,109550.0,0.1255122]
[1758880262839,1.33068155,109560.0,109550.0,0.03431]
[1758880263133,0.47796155,109560.0,109550.0,0.03431]
[1758880263338,1.33064155,109560.0,109550.0,0.03431]
[1758880265838,1.33064155,109560.0,109550.0,0.1255123]
[1758880267740,1.23944935,109560.0,109550.0,0.1255123]
[1758880267941,0.38676935,109560.0,109550.0,0.1255123]
[1758880268336,0.02596935,109560.0,109550.0,0.57759065]
[1758880268531,0.85568,109560.0,109550.0,0.57759065]
[1758880268732,0.85568,109560.0,109550.0,0.64311356]
[1758880269142,0.003,109560.0,109550.0,1.04311356]
[1758880269841,0.0941939,109560.0,109550.0,1.04903336]
[1758880271135,0.003,109560.0,109550.0,1.04903336]
[1758880271332,0.003,109560.0,109550.0,1.11455627]
[1758880274141,0.47327213,109590.0,109580.0,0.1044756]
[1758880274344,0.38367262,109590.0,109580.0,0.1263056]
[1758880274646,1.23627262,109590.0,109580.0,0.1263056]
[1758880275444,1.23927262,109590.0,109580.0,0.1263056]
[1758880276244,0.3608,109600.0,109590.0,0.126299]
[1758880276455,1.23621585,109600.0,109590.0,0.126299]
[1758880277347,0.4519573,109610.0,109600.0,0.1262906]
[1758880277551,1.32732016,109610.0,109600.0,0.1262906]
[1758880278050,1.32732016,109610.0,109600.0,0.03513]
[1758880278440,0.47480016,109610.0,109600.0,0.03513]
[1758880278641,1.32728016,109610.0,109600.0,0.03513]
[1758880280750,0.47480016,109610.0,109600.0,0.03513]
[1758880280959,1.32724016,109610.0,109600.0,0.03513]
[1758880284455,1.32724016,109610.0,109600.0,0.1262906]
[1758880285756,1.32724016,109610.0,109600.0,0.03513]
[1758880286856,1.3043973,109610.0,109600.0,0.03513]
[1758880287260,1.327189,109610.0,109600.0,0.03513]
[1758880287960,0.474749,109610.0,109600.0,0.03513]
[1758880288265,1.327069,109610.0,109600.0,0.03513]
[1758880290059,1.327069,109610.0,109590.0,0.10739434]
[1758880290060,0.0911611,109600.0,109590.0,0.10739434]
[1758880290257,0.4519611,109600.0,109590.0,0.08515434]
[1758880290658,0.4519611,109600.0,109590.0,0.10739434]
[1758880292163,0.4519611,109600.0,109590.0,0.11239434]
[1758880293761,0.4519611,109600.0,109590.0,0.10739434]
[1758880295062,0.4519611,109600.0,109590.0,0.19856344]
[1758880298163,0.47478984,109600.0,109590.0,0.19856344]
[1758880298764,0.38362874,109600.0,109590.0,0.19856344]
[1758880299156,0.47478934,109600.0,109590.0,0.19856344]
[1758880300559,1.23578874,109600.0,109590.0,0.19856344]
[1758880302159,1.32694934,109600.0,109590.0,0.1267091]
[1758880302462,1.23578874,109600.0,109590.0,0.1267091]
[1758880303567,0.38362874,109600.0,109590.0,0.1267091]
[1758880303968,1.23570874,109600.0,109590.0,0.1267091]
[1758880304354,0.02282874,109600.0,109590.0,0.5267091]
[1758880304559,0.3608,109610.0,109600.0,0.1260006]
[1758880304766,1.21288,109610.0,109600.0,0.1260006]
[1758880304967,1.3040323,109610.0,109600.0,0.1260006]
[1758880311567,1.3039123,109610.0,109600.0,0.1260006]
[1758880316572,1.326609,109610.0,109600.0,0.1260006]
[1758880317663,1.326609,109610.0,109600.0,0.1037606]
[1758880317868,1.326609,109610.0,109600.0,0.1249806]
[1758880322375,1.2354567,109610.0,109600.0,0.1249806]
[1758880323076,0.3835767,109610.0,109600.0,0.1249806]
[1758880323281,1.3265301,109610.0,109600.0,0.1249806]
[1758880323474,1.3265301,109610.0,109600.0,0.1249818]
[1758880325080,0.4747301,109610.0,109600.0,0.1249818]
[1758880325282,1.3265301,109610.0,109600.0,0.1249818]
[1758880330786,1.3265301,109610.0,109600.0,0.03382]
[1758880330982,1.3265301,109610.0,109600.0,0.0126]
[1758880331484,1.3265301,109610.0,109600.0,0.03584]
[1758880331785,1.3265301,109610.0,109600.0,0.1270027]
[1758880334084,0.0911605,109600.0,109590.0,0.1277031]
[1758880334289,0.1139372,109600.0,109590.0,0.1277031]
[1758880334586,0.4747372,109600.0,109590.0,0.1277031]
[1758880335089,0.0227767,109600.0,109590.0,0.1277031]
[1758880335284,1.3037586,109610.0,109600.0,0.1278117]
[1758880335482,1.32653666,109610.0,109600.0,0.1278117]
[1758880337497,0.47473666,109610.0,109600.0,0.1278117]
[1758880337693,1.23529806,109610.0,109600.0,0.1278117]